[Event "FIDE WCCC Open-10 2024"]
[Site "Montesilvano"]
[Date "2024.11.18"]
[Round "4.22"]
[White "Aguike, Toshiya"]
[Black "Fuentes de Nova, Sebastian"]
[Result "1/2-1/2"]
[ECO "C54"]
[WhiteElo "1716"]
[BlackElo "1929"]
[Annotator "RC"]
[PlyCount "125"]
[EventDate "2024.11.18"]
[EventType "swiss"]
[EventCountry "ITA"]
[SourceTitle "playchess.com"]
[Source "ChessBase"]
[SourceQuality "1"]
[TimeControl "5400+30"]

1. e4 {[%emt 0:00:07]} e5 {[%emt 0:00:26]} 2. Nf3 {[%emt 0:00:16]} Nc6 {[%emt 0:00:03]} 3. Bc4 {[%emt 0:00:10]} Bc5 {[%emt 0:00:17]} 4. c3 {[%emt 0:00:43]} Nf6 {[%emt 0:00:10]} 5. d4 {[%emt 0:00:08]} exd4 {[%emt 0:00:05]} 6. e5 {[%emt 0:00:09]} d5 {[%emt 0:00:06]} 7. Bb5 {[%emt 0:00:06]} Ne4 {[%emt 0:00:11]} 8. cxd4 {[%emt 0:00:06]} Bb6 {[%emt 0:00:09]} 9. Be3 {[%emt 0:00:25]} O-O {[%emt 0:00:46]} 10. Nc3 {[%emt 0:00:10]} Bg4 {[%emt 0:00:38]} 11. h3 {[%emt 0:00:21]} Bh5 {[%emt 0:00:13]} 12. Qc2 {[%emt 0:00:30]} Bg6 {[%emt 0:04:41]} 13. Qb3 {[%emt 0:02:32]} a6 {[%emt 0:06:31]} 14. Bxc6 {[%emt 0:04:09]} bxc6 {[%emt 0:00:00]} 15. O-O {[%emt 0:00:03]} Bh5 {[%emt 0:09:32]} 16. g4 {[%emt 0:27:01]} Bg6 {[%emt 0:01:13]} 17. Rfd1 {[%emt 0:03:05]} f5 {[%emt 0:02:23]} 18. Nxe4 {[%emt 0:03:31]} fxe4 {[%emt 0:09:09]} 19. Nh2 {[%emt 0:02:15]} Qh4 {[%emt 0:02:19]} 20. Kg2 {[%emt 0:00:32]} Be8 {[%emt 0:09:21]} 21. Rh1 {[%emt 0:04:05]} Bd7 {[%emt 0:02:02]} 22. Raf1 {[%emt 0:14:38]} Rab8 {[%emt 0:14:46]} 23. Qd1 {[%emt 0:10:46]} Ba7 {[%emt 0:02:40]} 24. b3 {[%emt 0:02:07]} a5 {[%emt 0:00:44]} 25. f4 {[%emt 0:01:47]} g6 {[%emt 0:03:43]} 26. Rf2 {[%emt 0:02:18]} Rf7 {[%emt 0:06:46]} 27. Qd2 {[%emt 0:02:10]} Bb6 {[%emt 0:00:43]} 28. f5 {[%emt 0:01:04]} Qe7 {[%emt 0:02:13]} 29. e6 {[%emt 0:02:18]} Bxe6 {[%emt 0:00:45]} 30. fxe6 {[%emt 0:00:14]} Rxf2+ {[%emt 0:00:16]} 31. Qxf2 {[%emt 0:00:40]} Rf8 {[%emt 0:00:29]} 32. Qg3 {[%emt 0:00:14]} Qxe6 {[%emt 0:02:15]} 33. Rf1 {[%emt 0:01:27]} Rxf1 {[%emt 0:04:07]} 34. Nxf1 {[%emt 0:00:44]} Qf6 {[%emt 0:05:22]} 35. g5 {[%emt 0:01:26]} Qg7 {[%emt 0:03:19]} 36. Qf2 {[%emt 0:00:37]} Qf8 {[%emt 0:01:35]} 37. Nh2 {[%emt 0:01:52]} Qxf2+ {[%emt 0:02:41]} 38. Kxf2 {[%emt 0:00:09]} Kf7 {[%emt 0:00:35]} 39. Ng4 {[%emt 0:00:51]} Ke6 {[%emt 0:00:15]} 40. Nf6 {[%emt 0:00:59]} h5 {[%emt 0:03:15]} 41. Kg3 {[%emt 0:02:13]} Ba7 {[%emt 0:01:05]} 42. Kf4 {[%emt 0:07:29]} c5 {[%emt 0:03:41]} 43. dxc5 {[%emt 0:03:16]} c6 {[%emt 0:00:00]} 44. Bd4 {[%emt 0:00:22]} Bb8+ {[%emt 0:00:00]} 45. Ke3 {[%emt 0:00:13]} Kf5 {[%emt 0:00:00]} 46. Nh7 {[%emt 0:00:44]} Bf4+ {[%emt 0:00:17]} 47. Ke2 {[%emt 0:00:05]} Bc7 {[%emt 0:00:42]} 48. a3 {[%emt 0:01:40]} Kf4 {[%emt 0:00:35]} 49. Kf2 {[%emt 0:00:37]} Kf5 {[%emt 0:00:54]} 50. b4 {[%emt 0:00:39]} axb4 {[%emt 0:00:31]} 51. axb4 {[%emt 0:00:18]} Bf4 {[%emt 0:00:24]} 52. Ke2 {[%emt 0:01:03]} Bb8 {[%emt 0:00:21]} 53. Bf6 {[%emt 0:00:11]} Kf4 {[%emt 0:00:18]} 54. Nf8 {[%emt 0:00:10]} Kf5 {[%emt 0:01:20]} 55. Nd7 {[%emt 0:00:38]} Bc7 {[%emt 0:00:07]} 56. Nb6 {[%emt 0:00:27]} Ke6 {[%emt 0:00:57]} 57. Nc8 {[%emt 0:00:07]} Bf4 {[%emt 0:00:32]} 58. Ne7 {[%emt 0:00:09]} d4 {[%emt 0:00:07]} 59. Nxc6 {[%emt 0:00:40]} d3+ {[%emt 0:00:12]} 60. Kd1 {[%emt 0:01:02]} e3 {[%emt 0:00:25]} 61. Nd4+ {[%emt 0:00:14]} Kd5 {[%emt 0:00:23]} 62. Nf3 {[%emt 0:01:42]} Ke4 {[%emt 0:00:44]} 63. Nd4 {[%emt 0:00:41]} 1/2-1/2

[Event "FIDE WCCC Open-10 2024"]
[Site "Montesilvano"]
[Date "2024.11.18"]
[Round "4.23"]
[White "Golya, David"]
[Black "Mutyalapati, Modith Aaroh"]
[Result "0-1"]
[ECO "C01"]
[WhiteElo "1672"]
[BlackElo "1893"]
[Annotator "NA RC"]
[PlyCount "82"]
[EventDate "2024.11.18"]
[EventType "swiss"]
[EventCountry "ITA"]
[SourceTitle "playchess.com"]
[Source "ChessBase"]
[SourceQuality "1"]
[TimeControl "5400+30"]

1. e4 {[%emt 0:00:02]} e6 {[%emt 0:00:19]} 2. d4 {[%emt 0:00:07]} d5 {[%emt 0:00:05]} 3. Bd3 {[%emt 0:00:19]} dxe4 {[%emt 0:00:33]} 4. Bxe4 {[%emt 0:00:06]} Nf6 {[%emt 0:00:11]} 5. Bf3 {[%emt 0:00:07]} c5 {[%emt 0:00:21]} 6. Be3 {[%emt 0:01:53]} Nd5 {[%emt 0:06:13]} 7. Bxd5 {[%emt 0:04:27]} Qxd5 {[%emt 0:00:16]} 8. Nf3 {[%emt 0:00:31]} cxd4 {[%emt 1:26:32]} 9. Qxd4 {[%emt 0:01:52]} Qa5+ {[%emt 0:00:00]} 10. Bd2 {[%emt 0:03:43]} Qc7 {[%emt 0:00:00]} 11. Nc3 {[%emt 0:01:26]} Nc6 {[%emt 0:00:00]} 12. Nb5 {[%emt 0:09:29]} Qe7 {[%emt 0:00:00]} 13. Qc3 {[%emt 0:06:18]} a6 {[%emt 0:00:00]} 14. Ne5 {[%emt 0:07:56]} axb5 {[%emt 0:00:00]} 15. Nxc6 {[%emt 0:00:55]} Qd6 {[%emt 0:00:00]} 16. Nd4 {[%emt 0:04:26]} Bd7 {[%emt 0:00:00]} 17. O-O {[%emt 0:02:56]} e5 {[%emt 0:00:00]} 18. Rfe1 {[%emt 0:07:20]} Be7 {[%emt 0:00:00]} 19. Nf3 {[%emt 0:00:50]} f6 {[%emt 0:00:00]} 20. a3 {[%emt 0:06:45]} Qc6 {[%emt 0:00:00]} 21. Qd3 {[%emt 0:11:13]} Be6 {[%emt 0:00:00]} 22. b4 {[%emt 0:04:27]} O-O {[%emt 0:00:00]} 23. c3 {[%emt 0:03:35]} Rfd8 {[%emt 0:00:00]} 24. Qe3 {[%emt 0:01:13]} Rd6 {[%emt 0:00:00]} 25. h3 {[%emt 0:06:04]} Bd8 {[%emt 0:00:00]} 26. Red1 {[%emt 0:03:41]} Bb6 {[%emt 0:00:00]} 27. Qe1 {[%emt 0:00:45]} Bxh3 {[%emt 0:00:00]} 28. Rdc1 {[%emt 0:04:27]} Bg4 {[%emt 0:00:00]} 29. Nh2 {[%emt 0:00:50]} Bf5 {[%emt 0:00:00]} 30. Be3 {[%emt 0:00:25]} Bxe3 {[%emt 0:00:00]} 31. Qxe3 {[%emt 0:01:50]} Rd3 {[%emt 0:00:00]} 32. Qe1 {[%emt 0:00:44]} e4 {[%emt 0:00:00]} 33. f3 {[%emt 0:01:30]} e3 {[%emt 0:00:00]} 34. Nf1 {[%emt 0:00:29]} Re8 {[%emt 0:00:00]} 35. Ng3 {[%emt 0:00:24]} Bg6 {[%emt 0:00:00]} 36. Ne2 {[%emt 0:00:45]} Rd2 {[%emt 0:00:00]} 37. Rd1 {[%emt 0:00:54]} Qc4 {[%emt 0:00:00]} 38. Nd4 {[%emt 0:01:26]} Qxc3 {[%emt 0:00:00]} 39. Nxb5 {[%emt 0:00:17]} Qb2 {[%emt 0:00:00]} 40. Rxd2 {[%emt 0:01:19]} exd2 {[%emt 0:00:00]} 41. Qf1 {[%emt 0:00:21]} Qxa1 {[%emt 0:00:00]} 0-1

[Event "FIDE WCCC Open-10 2024"]
[Site "Montesilvano"]
[Date "2024.11.18"]
[Round "4.23"]
[White "Radovic, Koca"]
[Black "Loberti, Tommaso"]
[Result "0-1"]
[ECO "C50"]
[WhiteElo "1626"]
[BlackElo "1474"]
[Annotator "NA RC"]
[PlyCount "100"]
[EventDate "2024.11.18"]
[EventType "swiss"]
[EventCountry "ITA"]
[SourceTitle "playchess.com"]
[Source "ChessBase"]
[SourceQuality "1"]
[TimeControl "5400+30"]

1. e4 {[%emt 0:00:01]} e5 {[%emt 0:00:07]} 2. Nf3 {[%emt 0:00:03]} Nc6 {[%emt 0:00:07]} 3. Bc4 {[%emt 0:00:07]} Bc5 {[%emt 0:00:11]} 4. O-O {[%emt 0:00:16]} d6 {[%emt 0:00:40]} 5. h3 {[%emt 0:00:07]} Nf6 {[%emt 0:01:07]} 6. d3 {[%emt 0:00:21]} h6 {[%emt 0:00:49]} 7. Nc3 {[%emt 0:00:26]} Be6 {[%emt 0:02:40]} 8. Bxe6 {[%emt 0:00:52]} fxe6 {[%emt 0:00:14]} 9. Re1 {[%emt 0:00:19]} Qd7 {[%emt 0:02:31]} 10. a3 {[%emt 0:00:49]} a6 {[%emt 0:03:53]} 11. b4 {[%emt 0:01:25]} Ba7 {[%emt 0:00:49]} 12. Rb1 {[%emt 0:08:09]} O-O {[%emt 1:23:22]} 13. Qe2 {[%emt 0:14:31]} Qf7 {[%emt 0:00:00]} 14. Rf1 {[%emt 0:07:43]} Nh5 {[%emt 0:00:00]} 15. Be3 {[%emt 0:11:32]} Bxe3 {[%emt 0:00:00]} 16. fxe3 {[%emt 0:02:48]} Ng3 {[%emt 0:00:00]} 17. Qd2 {[%emt 0:06:19]} Nxf1 {[%emt 0:00:00]} 18. Rxf1 {[%emt 0:00:43]} Qg6 {[%emt 0:00:00]} 19. b5 {[%emt 0:06:46]} axb5 {[%emt 0:00:00]} 20. Nxb5 {[%emt 0:00:27]} Rf7 {[%emt 0:00:00]} 21. Qe2 {[%emt 0:08:29]} Raf8 {[%emt 0:00:00]} 22. Nc3 {[%emt 0:06:01]} Qg3 {[%emt 0:05:00]} 23. Nb1 {[%emt 0:07:48]} Ne7 {[%emt 0:00:00]} 24. Nbd2 {[%emt 0:01:16]} Ng6 {[%emt 0:00:00]} 25. Rf2 {[%emt 0:02:31]} Nh4 {[%emt 0:00:00]} 26. Nf1 {[%emt 0:01:34]} Nxf3+ {[%emt 0:00:00]} 27. Rxf3 {[%emt 0:02:14]} Qg5 {[%emt 0:00:00]} 28. Rxf7 {[%emt 0:01:21]} Rxf7 {[%emt 0:00:00]} 29. Nh2 {[%emt 0:01:21]} d5 {[%emt 0:00:00]} 30. Nf3 {[%emt 0:01:29]} Qf6 {[%emt 0:00:00]} 31. exd5 {[%emt 0:00:37]} exd5 {[%emt 0:00:00]} 32. Nd2 {[%emt 0:02:41]} Qh4 {[%emt 0:00:00]} 33. Qg4 {[%emt 0:01:10]} Qxg4 {[%emt 0:00:00]} 34. hxg4 {[%emt 0:00:09]} Rf6 {[%emt 0:00:00]} 35. Nf3 {[%emt 0:00:19]} e4 {[%emt 0:00:00]} 36. Ne5 {[%emt 0:00:24]} exd3 {[%emt 0:00:00]} 37. cxd3 {[%emt 0:00:08]} Ra6 {[%emt 0:00:00]} 38. Kf2 {[%emt 0:02:13]} Rxa3 {[%emt 0:00:00]} 39. Kf3 {[%emt 0:00:11]} b5 {[%emt 0:00:00]} 40. Nc6 {[%emt 0:01:12]} Rxd3 {[%emt 0:00:00]} 41. Ke2 {[%emt 0:00:39]} Rc3 {[%emt 0:00:00]} 42. Nd4 {[%emt 0:00:24]} c5 {[%emt 0:00:00]} 43. Nxb5 {[%emt 0:00:24]} Rc2+ {[%emt 0:00:00]} 44. Kf3 {[%emt 0:00:37]} c4 {[%emt 0:00:00]} 45. Nd4 {[%emt 0:00:15]} Rb2 {[%emt 0:00:00]} 46. Ne2 {[%emt 0:00:26]} g5 {[%emt 0:00:00]} 47. g3 {[%emt 0:00:35]} Kf7 {[%emt 0:00:00]} 48. Nc3 {[%emt 0:01:20]} Ke6 {[%emt 0:00:00]} 49. e4 {[%emt 0:00:22]} Rb3 {[%emt 0:00:00]} 50. exd5+ {[%emt 0:00:42]} Ke5 {[%emt 0:14:00]} 0-1

[Event "FIDE WCCC Open-10 2024"]
[Site "Montesilvano"]
[Date "2024.11.18"]
[Round "4.24"]
[White "Barsov, Mikhail"]
[Black "Zabelin, Platon"]
[Result "1/2-1/2"]
[ECO "E09"]
[WhiteElo "1668"]
[BlackElo "1870"]
[Annotator "NA RC"]
[PlyCount "85"]
[EventDate "2024.11.18"]
[EventType "swiss"]
[EventCountry "ITA"]
[SourceTitle "playchess.com"]
[Source "ChessBase"]
[SourceQuality "1"]
[TimeControl "5400+30"]

1. c4 {[%emt 0:00:05]} e6 {[%emt 0:00:04]} 2. g3 {[%emt 0:00:03]} d5 {[%emt 0:00:03]} 3. Bg2 {[%emt 0:00:03]} Nf6 {[%emt 0:00:07]} 4. Nf3 {[%emt 0:00:03]} Be7 {[%emt 0:00:20]} 5. O-O {[%emt 0:00:12]} O-O {[%emt 0:00:09]} 6. d4 {[%emt 0:01:33]} c6 {[%emt 0:00:09]} 7. Nbd2 {[%emt 0:04:29]} b6 {[%emt 0:01:06]} 8. Qc2 {[%emt 0:03:41]} Bb7 {[%emt 0:00:07]} 9. b3 {[%emt 0:03:27]} Nbd7 {[%emt 0:02:18]} 10. Bb2 {[%emt 0:00:51]} Rc8 {[%emt 0:00:21]} 11. Rac1 {[%emt 0:00:46]} c5 {[%emt 0:02:08]} 12. Qb1 {[%emt 0:05:45]} Rc7 {[%emt 0:04:09]} 13. a3 {[%emt 0:08:25]} Qa8 {[%emt 0:05:54]} 14. cxd5 {[%emt 0:02:37]} Bxd5 {[%emt 0:00:53]} 15. dxc5 {[%emt 0:02:45]} bxc5 {[%emt 0:04:32]} 16. Rfe1 {[%emt 0:07:15]} Ne4 {[%emt 0:02:22]} 17. Nxe4 {[%emt 0:01:32]} Bxe4 {[%emt 0:01:41]} 18. Qa1 {[%emt 0:00:12]} Bf6 {[%emt 0:00:12]} 19. Bxf6 {[%emt 0:01:28]} Nxf6 {[%emt 0:00:10]} 20. Qe5 {[%emt 0:01:44]} Rfc8 {[%emt 0:00:37]} 21. Red1 {[%emt 0:00:49]} h6 {[%emt 0:02:56]} 22. Rd8+ {[%emt 0:07:14]} Rxd8 {[%emt 0:00:33]} 23. Qxc7 {[%emt 0:00:07]} Rc8 {[%emt 0:00:13]} 24. Qe7 {[%emt 0:05:28]} Qb7 {[%emt 0:21:15]} 25. Qxb7 {[%emt 0:02:37]} Bxb7 {[%emt 0:00:19]} 26. Ne5 {[%emt 0:01:43]} Bxg2 {[%emt 0:02:27]} 27. Kxg2 {[%emt 0:00:05]} Rb8 {[%emt 0:11:30]} 28. Rxc5 {[%emt 0:01:45]} Rxb3 {[%emt 0:00:13]} 29. Ra5 {[%emt 0:01:25]} Ne4 {[%emt 0:01:47]} 30. Rxa7 {[%emt 0:02:10]} f6 {[%emt 0:00:53]} 31. Nd3 {[%emt 0:01:07]} Nc3 {[%emt 0:01:36]} 32. Nc5 {[%emt 0:02:00]} Rb6 {[%emt 0:00:43]} 33. Ra6 {[%emt 0:02:13]} Rxa6 {[%emt 0:00:50]} 34. Nxa6 {[%emt 0:00:04]} Nxe2 {[%emt 0:00:58]} 35. a4 {[%emt 0:00:07]} Nc3 {[%emt 0:01:27]} 36. a5 {[%emt 0:00:11]} Nb5 {[%emt 0:00:22]} 37. Nc5 {[%emt 0:00:31]} Kf7 {[%emt 0:00:09]} 38. Kf3 {[%emt 0:00:27]} Ke7 {[%emt 0:00:19]} 39. Ke4 {[%emt 0:02:26]} Kd6 {[%emt 0:01:32]} 40. Nb7+ {[%emt 0:01:22]} Kc6 {[%emt 0:01:03]} 41. Nd8+ {[%emt 0:00:06]} Kd7 {[%emt 0:00:25]} 42. Nb7 {[%emt 0:00:57]} Kc6 {[%emt 0:32:38]} 43. Nd8+ {[%emt 0:30:10]} 1/2-1/2

[Event "FIDE WCCC Open-10 2024"]
[Site "Montesilvano"]
[Date "2024.11.18"]
[Round "4.25"]
[White "Tugsbilguun, Davganamdag"]
[Black "Wang, Rocky"]
[Result "1/2-1/2"]
[ECO "B33"]
[WhiteElo "1660"]
[BlackElo "1853"]
[Annotator "NA RC"]
[PlyCount "179"]
[EventDate "2024.11.18"]
[EventType "swiss"]
[EventCountry "ITA"]
[SourceTitle "playchess.com"]
[Source "ChessBase"]
[SourceQuality "1"]
[TimeControl "5400+30"]

1. e4 {[%emt 0:00:07]} c5 {[%emt 0:00:10]} 2. Nf3 {[%emt 0:00:02]} Nc6 {[%emt 0:00:50]} 3. d4 {[%emt 0:00:07]} cxd4 {[%emt 0:00:05]} 4. Nxd4 {[%emt 0:00:03]} Nf6 {[%emt 0:00:47]} 5. Nc3 {[%emt 0:00:07]} e5 {[%emt 0:00:05]} 6. Ndb5 {[%emt 0:00:09]} d6 {[%emt 0:00:16]} 7. Bg5 {[%emt 0:00:08]} a6 {[%emt 0:00:35]} 8. Na3 {[%emt 0:00:05]} b5 {[%emt 0:00:39]} 9. Nd5 {[%emt 0:00:29]} Be7 {[%emt 0:00:32]} 10. Bxf6 {[%emt 0:00:25]} Bxf6 {[%emt 0:00:49]} 11. c3 {[%emt 0:01:58]} O-O {[%emt 0:01:11]} 12. Nc2 {[%emt 0:02:20]} Rb8 {[%emt 0:00:08]} 13. Be2 {[%emt 0:02:35]} Bg5 {[%emt 0:01:50]} 14. Bg4 {[%emt 0:12:44]} Be6 {[%emt 0:09:18]} 15. Nce3 {[%emt 0:12:26]} Ne7 {[%emt 0:09:09]} 16. O-O {[%emt 0:10:46]} Qd7 {[%emt 0:06:53]} 17. Nxe7+ {[%emt 0:14:35]} Bxe7 {[%emt 0:08:59]} 18. Bf3 {[%emt 0:10:38]} a5 {[%emt 0:09:01]} 19. Qd3 {[%emt 0:05:41]} Bg5 {[%emt 0:07:24]} 20. Nd5 {[%emt 0:03:17]} g6 {[%emt 0:01:05]} 21. Rfd1 {[%emt 0:03:16]} f5 {[%emt 0:04:52]} 22. Ne3 {[%emt 0:00:19]} Bxe3 {[%emt 0:03:11]} 23. Qxe3 {[%emt 0:00:18]} f4 {[%emt 0:00:18]} 24. Qd3 {[%emt 0:02:19]} Rb6 {[%emt 0:00:36]} 25. Rd2 {[%emt 0:00:56]} g5 {[%emt 0:04:29]} 26. Bd1 {[%emt 0:01:23]} Bc4 {[%emt 0:06:03]} 27. Qf3 {[%emt 0:01:32]} Be6 {[%emt 0:04:16]} 28. Qd3 {[%emt 0:01:05]} g4 {[%emt 0:02:02]} 29. f3 {[%emt 0:15:10]} h5 {[%emt 0:01:29]} 30. Bb3 {[%emt 0:00:00]} b4 {[%emt 0:04:35]} 31. Bxe6+ {[%emt 0:00:00]} Qxe6 {[%emt 0:00:06]} 32. cxb4 {[%emt 0:00:00]} axb4 {[%emt 0:01:01]} 33. Rc2 {[%emt 0:00:00]} b3 {[%emt 0:02:41]} 34. axb3 {[%emt 0:00:00]} Qxb3 {[%emt 0:01:21]} 35. Qxb3+ {[%emt 0:00:00]} Rxb3 {[%emt 0:00:05]} 36. fxg4 {[%emt 0:00:00]} hxg4 {[%emt 0:00:05]} 37. Ra7 {[%emt 0:00:00]} Rf7 {[%emt 0:02:17]} 38. Ra8+ {[%emt 0:00:00]} Kg7 {[%emt 0:00:20]} 39. Rcc8 {[%emt 0:00:15]} Kf6 {[%emt 0:01:56]} 40. Rc2 {[%emt 0:00:36]} Re3 {[%emt 0:01:01]} 41. Rd2 {[%emt 0:00:26]} Rxe4 {[%emt 0:01:35]} 42. Rxd6+ {[%emt 0:00:19]} Kf5 {[%emt 0:00:06]} 43. Kf2 {[%emt 0:00:27]} Rb4 {[%emt 0:00:27]} 44. Rd2 {[%emt 0:01:00]} Rfb7 {[%emt 0:01:39]} 45. Rf8+ {[%emt 0:01:56]} Ke6 {[%emt 0:00:20]} 46. Re8+ {[%emt 0:00:06]} Kf6 {[%emt 0:00:10]} 47. Re2 {[%emt 0:00:15]} R4b5 {[%emt 0:02:29]} 48. Rf8+ {[%emt 0:00:25]} Rf7 {[%emt 0:01:39]} 49. Rg8 {[%emt 0:00:37]} Rg7 {[%emt 0:00:55]} 50. Rf8+ {[%emt 0:00:07]} Kg5 {[%emt 0:01:04]} 51. Re8 {[%emt 0:00:06]} Kf6 {[%emt 0:00:20]} 52. Rf8+ {[%emt 0:00:02]} Rf7 {[%emt 0:00:05]} 53. Rg8 {[%emt 0:00:06]} Kf5 {[%emt 0:00:17]} 54. Rh8 {[%emt 0:00:20]} Ke6 {[%emt 0:01:34]} 55. Re8+ {[%emt 0:00:08]} Kf6 {[%emt 0:01:42]} 56. Rg8 {[%emt 0:00:31]} Rh7 {[%emt 0:00:28]} 57. Rxg4 {[%emt 0:00:14]} Rxh2 {[%emt 0:00:57]} 58. Rg8 {[%emt 0:00:37]} Rh7 {[%emt 0:00:18]} 59. Rf8+ {[%emt 0:00:05]} Rf7 {[%emt 0:00:30]} 60. Rxf7+ {[%emt 0:00:05]} Kxf7 {[%emt 0:00:06]} 61. g3 {[%emt 0:00:22]} fxg3+ {[%emt 0:01:04]} 62. Kxg3 {[%emt 0:00:23]} Ke6 {[%emt 0:00:08]} 63. Kf3 {[%emt 0:00:09]} Kf5 {[%emt 0:00:18]} 64. Rc2 {[%emt 0:00:09]} Rb3+ {[%emt 0:00:08]} 65. Ke2 {[%emt 0:00:07]} Ke4 {[%emt 0:00:18]} 66. Rc4+ {[%emt 0:00:15]} Kd5 {[%emt 0:00:06]} 67. Rc2 {[%emt 0:00:29]} Kd4 {[%emt 0:00:22]} 68. Rd2+ {[%emt 0:00:15]} Ke4 {[%emt 0:00:09]} 69. Rc2 {[%emt 0:00:04]} Kf4 {[%emt 0:00:06]} 70. Rc4+ {[%emt 0:00:06]} e4 {[%emt 0:00:13]} 71. Rc3 {[%emt 0:00:01]} Rb8 {[%emt 0:00:09]} 72. b3 {[%emt 0:00:06]} Rh8 {[%emt 0:00:04]} 73. Ke1 {[%emt 0:00:05]} Ke5 {[%emt 0:00:43]} 74. b4 {[%emt 0:00:06]} Kd4 {[%emt 0:00:11]} 75. Rb3 {[%emt 0:00:02]} Rh1+ {[%emt 0:01:01]} 76. Ke2 {[%emt 0:00:04]} Rh2+ {[%emt 0:00:07]} 77. Ke1 {[%emt 0:00:06]} Kc4 {[%emt 0:03:07]} 78. Re3 {[%emt 0:00:14]} Kd5 {[%emt 0:00:08]} 79. Rb3 {[%emt 0:13:14]} Ke5 {[%emt 0:01:39]} 80. b5 {[%emt 0:00:00]} Kf4 {[%emt 0:00:42]} 81. b6 {[%emt 0:00:00]} Rh8 {[%emt 0:00:26]} 82. b7 {[%emt 0:00:00]} Rb8 {[%emt 0:00:02]} 83. Ke2 {[%emt 0:00:00]} Ke5 {[%emt 0:00:06]} 84. Ke3 {[%emt 0:00:00]} Kd5 {[%emt 0:00:09]} 85. Rb4 {[%emt 0:00:00]} Kc5 {[%emt 0:00:10]} 86. Rb1 {[%emt 0:00:00]} Kd5 {[%emt 0:00:04]} 87. Rb4 {[%emt 0:00:00]} Kc5 {[%emt 0:00:22]} 88. Rb1 {[%emt 0:00:00]} Kd5 {[%emt 0:00:06]} 89. Rb4 {[%emt 0:00:00]} Kc5 {[%emt 0:03:41]} 90. Rb1 {[%emt 0:00:00]} 1/2-1/2

[Event "FIDE WCCC Open-10 2024"]
[Site "Montesilvano"]
[Date "2024.11.18"]
[Round "4.26"]
[White "Melkonyan, Davit"]
[Black "Vardanyan, Armen Art."]
[Result "1-0"]
[ECO "A28"]
[WhiteElo "1842"]
[BlackElo "1735"]
[Annotator "NA RC"]
[PlyCount "102"]
[EventDate "2024.11.18"]
[EventType "swiss"]
[EventCountry "ITA"]
[SourceTitle "playchess.com"]
[Source "ChessBase"]
[SourceQuality "1"]
[TimeControl "5400+30"]

1. c4 {[%emt 0:00:24]} e5 {[%emt 0:00:36]} 2. Nc3 {[%emt 0:00:44]} Nf6 {[%emt 0:00:25]} 3. Nf3 {[%emt 0:02:21]} Nc6 {[%emt 0:00:56]} 4. e3 {[%emt 0:05:22]} d5 {[%emt 0:04:47]} 5. d4 {[%emt 0:06:14]} exd4 {[%emt 0:03:02]} 6. Nxd4 {[%emt 0:01:44]} Nxd4 {[%emt 0:00:30]} 7. exd4 {[%emt 0:10:04]} dxc4 {[%emt 0:03:17]} 8. Bxc4 {[%emt 0:00:47]} Bd6 {[%emt 0:01:07]} 9. O-O {[%emt 0:01:01]} O-O {[%emt 0:04:04]} 10. Bg5 {[%emt 0:03:12]} h6 {[%emt 0:00:21]} 11. Bh4 {[%emt 0:00:34]} Be7 {[%emt 0:08:00]} 12. Re1 {[%emt 0:04:55]} c6 {[%emt 0:03:56]} 13. Qd2 {[%emt 0:04:42]} Nd5 {[%emt 0:01:52]} 14. Bxe7 {[%emt 0:10:06]} Nxe7 {[%emt 0:00:16]} 15. Rad1 {[%emt 0:03:22]} Nd5 {[%emt 0:00:14]} 16. Bxd5 {[%emt 0:03:30]} cxd5 {[%emt 0:00:01]} 17. Re5 {[%emt 0:00:38]} Be6 {[%emt 0:00:13]} 18. f4 {[%emt 0:01:08]} Qd7 {[%emt 0:05:13]} 19. f5 {[%emt 0:04:10]} Bxf5 {[%emt 0:01:18]} 20. Rxd5 {[%emt 0:03:41]} Qe6 {[%emt 0:00:28]} 21. Re1 {[%emt 0:01:29]} Qg6 {[%emt 0:01:29]} 22. Rde5 {[%emt 0:31:22]} Rad8 {[%emt 0:02:17]} 23. Nd5 {[%emt 0:00:00]} Rxd5 {[%emt 0:01:32]} 24. Rxd5 {[%emt 0:00:00]} Rc8 {[%emt 0:01:36]} 25. Rc5 {[%emt 0:00:00]} Rd8 {[%emt 0:00:25]} 26. Rce5 {[%emt 0:00:00]} f6 {[%emt 0:00:36]} 27. Re7 {[%emt 0:00:00]} Rc8 {[%emt 0:00:58]} 28. Rc1 {[%emt 0:00:00]} Rxc1+ {[%emt 0:00:30]} 29. Qxc1 {[%emt 0:00:00]} Be4 {[%emt 0:00:34]} 30. Qd2 {[%emt 0:00:00]} Bd5 {[%emt 0:00:12]} 31. b3 {[%emt 0:00:00]} Qb1+ {[%emt 0:00:10]} 32. Re1 {[%emt 0:00:00]} Qg6 {[%emt 0:00:16]} 33. Rc1 {[%emt 0:00:00]} Qe4 {[%emt 0:01:09]} 34. Re1 {[%emt 0:00:00]} Qg6 {[%emt 0:55:10]} 35. Qf2 {[%emt 0:00:00]} Qg4 {[%emt 0:00:00]} 36. h3 {[%emt 0:00:00]} Qg6 {[%emt 0:00:00]} 37. Kh2 {[%emt 0:00:00]} h5 {[%emt 0:00:00]} 38. Qg3 {[%emt 0:00:00]} Qxg3+ {[%emt 0:00:00]} 39. Kxg3 {[%emt 0:00:00]} Kf7 {[%emt 0:00:00]} 40. h4 {[%emt 0:00:00]} Bc6 {[%emt 0:00:00]} 41. Re2 {[%emt 0:00:00]} g5 {[%emt 0:00:00]} 42. hxg5 {[%emt 0:00:00]} fxg5 {[%emt 0:00:00]} 43. d5 {[%emt 0:00:00]} Bd7 {[%emt 0:00:00]} 44. Rc2 {[%emt 0:00:00]} h4+ {[%emt 0:00:00]} 45. Kh2 {[%emt 0:00:00]} Ke7 {[%emt 0:00:00]} 46. Rc7 {[%emt 0:00:00]} b5 {[%emt 0:00:00]} 47. Rxa7 {[%emt 0:12:30]} Kd6 {[%emt 0:00:00]} 48. Rxd7+ {[%emt 0:00:00]} Kxd7 {[%emt 0:00:00]} 49. a4 {[%emt 0:00:00]} bxa4 {[%emt 0:00:00]} 50. bxa4 {[%emt 0:01:30]} Kd6 {[%emt 0:00:00]} 51. Kh3 {[%emt 0:00:00]} Kxd5 {[%emt 0:08:30]} 1-0